bitfinex/quotes_BTCUSD_20240820
["timestamp","ask_amount","ask_price","bid_price","bid_amount"]
[1724147899007,0.379127,60975.0,60974.0,0.00309972]
[1724147899219,0.378127,60975.0,60974.0,0.00209972]
[1724147899627,0.371127,60975.0,60974.0,0.00109972]
[1724147899881,0.386127,60975.0,60974.0,0.00309972]
[1724147900391,0.372127,60975.0,60974.0,0.00209972]
[1724147900817,0.386127,60975.0,60974.0,0.00309972]
[1724147901236,0.81253198,60975.0,60974.0,0.00309972]
[1724147905862,1.07493398,60975.0,60974.0,0.00309972]
[1724147909530,0.015826,60975.0,60974.0,0.08109972]
[1724147910163,0.57343198,60975.0,60974.0,0.00309972]
[1724147910394,0.98003398,60975.0,60974.0,0.00309972]
[1724147910620,0.96503398,60975.0,60974.0,0.00109972]
[1724147910826,0.70263198,60975.0,60974.0,0.00109972]
[1724147911023,0.81863198,60975.0,60974.0,0.00309972]
[1724147911226,0.80663198,60975.0,60974.0,0.00209972]
[1724147911437,0.80263198,60975.0,60974.0,0.00109972]
[1724147911643,0.81663198,60975.0,60974.0,0.00209972]
[1724147911862,0.82063198,60975.0,60974.0,0.00309972]
[1724147915648,1.20251678,60975.0,60974.0,0.00309972]
[1724147915860,1.46491878,60975.0,60974.0,0.00309972]
[1724147916098,1.63348401,60975.0,60974.0,0.00309972]
[1724147916309,1.94499881,60975.0,60974.0,0.00309972]
[1724147916521,1.89588601,60975.0,60974.0,0.00309972]
[1724147916746,1.90555902,60975.0,60974.0,0.00309972]
[1724147916963,1.90555902,60975.0,60974.0,0.00209972]
[1724147916964,1.99278463,60975.0,60974.0,0.00209972]
[1724147917179,1.88755902,60975.0,60974.0,0.00109972]
[1724147917407,2.00363436,60975.0,60974.0,0.00309972]
[1724147917620,1.98963436,60975.0,60974.0,0.00209972]
[1724147918028,1.99963436,60975.0,60974.0,0.00209972]
[1724147918344,1.97909239,60975.0,60974.0,0.00309972]
[1724147918496,1.90555902,60975.0,60974.0,0.00309972]
[1724147919115,1.97907721,60975.0,60974.0,0.00309972]
[1724147920148,1.90555902,60975.0,60974.0,0.00309972]
[1724147920492,1.97907721,60975.0,60974.0,0.00309972]
[1724147921413,1.90555902,60975.0,60974.0,0.00309972]
[1724147926506,1.78607622,60975.0,60974.0,0.00309972]
[1724147928478,1.28090422,60975.0,60974.0,0.00309972]
[1724147928687,1.06030699,60975.0,60974.0,0.00309972]
[1724147928937,1.32270899,60975.0,60974.0,0.00309972]
[1724147932329,1.06030699,60975.0,60974.0,0.00309972]
[1724147933395,1.05630699,60975.0,60974.0,0.00209972]
[1724147934141,1.07030699,60975.0,60974.0,0.00309972]
[1724147934568,1.05630699,60975.0,60974.0,0.00209972]
[1724147934947,1.07030699,60975.0,60974.0,0.00209972]
[1724147936013,1.22276761,60975.0,60974.0,0.00209972]
[1724147936124,1.37026761,60975.0,60974.0,0.00209972]
[1724147937993,1.63266961,60975.0,60974.0,0.00209972]
[1724147938200,1.70268536,60975.0,60974.0,0.00209972]
[1724147941283,1.48745802,60975.0,60974.0,0.00209972]
[1724147941489,1.55022474,60975.0,60974.0,0.00209972]
[1724147941663,1.59925802,60975.0,60974.0,0.00209972]
[1724147942037,1.55022474,60975.0,60974.0,0.00209972]
[1724147942184,1.59925802,60975.0,60974.0,0.00209972]
[1724147943800,1.7632368,60975.0,60974.0,0.00209972]
[1724147948313,1.8618068,60975.0,60974.0,0.00209972]
[1724147948512,1.86182087,60975.0,60974.0,0.00209972]
[1724147949816,1.81277352,60975.0,60974.0,0.00209972]
[1724147950395,1.88634454,60975.0,60974.0,0.00209972]
[1724147951179,1.87234454,60975.0,60974.0,0.00109972]
[1724147951580,1.88634454,60975.0,60974.0,0.00209972]
[1724147951781,1.87234454,60975.0,60974.0,0.00209972]
[1724147952161,1.88634454,60975.0,60974.0,0.00209972]
[1724147953227,1.90936423,60975.0,60974.0,0.00209972]
[1724147953659,2.17176623,60975.0,60974.0,0.00209972]
[1724147953903,1.90936423,60975.0,60974.0,0.00209972]
[1724147954217,1.83577352,60975.0,60974.0,0.00209972]
[1724147956217,1.93389447,60975.0,60974.0,0.00209972]
[1724147956831,1.93395264,60975.0,60974.0,0.00209972]
[1724147957215,1.95842471,60975.0,60974.0,0.00209972]
[1724147957419,1.83577352,60975.0,60974.0,0.00209972]
[1724147961257,1.52429474,60975.0,60974.0,0.00209972]
[1724147964892,1.38949474,60975.0,60974.0,0.00209972]
[1724147965097,1.50129474,60975.0,60974.0,0.00209972]
[1724147965300,1.02852274,60975.0,60974.0,0.06859972]
[1724147965481,1.14032274,60975.0,60974.0,0.14559972]
[1724147971766,1.14032274,60975.0,60974.0,0.14559971]
[1724147972140,1.52048202,60975.0,60974.0,0.07909971]
[1724147972499,1.67975202,60975.0,60974.0,0.00209971]
[1724147974250,1.61905202,60975.0,60974.0,0.00209971]
[1724147976300,1.50725202,60975.0,60974.0,0.00209971]
[1724147976496,1.61905202,60975.0,60974.0,0.00209971]
[1724147978235,1.74187598,60975.0,60974.0,0.00209971]
[1724147978416,1.61905202,60975.0,60974.0,0.00209971]
[1724147983282,1.7664813,60975.0,60974.0,0.00209971]
[1724147983852,1.76648128,60975.0,60974.0,0.00209971]
[1724147987209,2.02888328,60975.0,60974.0,0.00209971]
[1724147987439,2.05188328,60975.0,60974.0,0.00209971]
[1724147988525,2.05181205,60975.0,60974.0,0.00209971]
[1724147990510,2.19311205,60975.0,60974.0,0.00209971]
[1724147991278,2.96411205,60975.0,60974.0,0.00209971]
[1724147991495,2.81875402,60975.0,60974.0,0.00209971]
[1724147991692,2.82075402,60975.0,60974.0,0.00209971]
[1724147991918,2.81675402,60975.0,60974.0,0.00209971]
[1724147992092,2.81675402,60975.0,60974.0,0.00109971]
[1724147992093,2.80275402,60975.0,60974.0,0.00109971]
[1724147992818,2.98245807,60975.0,60974.0,0.00109971]
[1724147993023,3.05115602,60975.0,60974.0,0.00109971]
[1724147993194,2.95442253,60975.0,60974.0,0.00109971]
[1724147993394,2.18442253,60975.0,60974.0,0.00109971]
[1724147993776,1.99522253,60975.0,60974.0,0.00109971]
[1724147993978,1.75869674,60975.0,60974.0,0.00109971]
[1724147994426,1.78669674,60975.0,60974.0,0.00109971]
[1724147994885,1.77269674,60975.0,60974.0,0.08189971]
[1724147995525,1.90597216,60975.0,60974.0,0.08189971]
[1724147995725,1.91997216,60975.0,60974.0,0.08189971]
[1724147995934,1.78669674,60975.0,60974.0,0.08189971]
[1724147996745,1.76369674,60975.0,60974.0,0.08189971]
[1724147997010,1.88123328,60975.0,60974.0,0.08189971]
[1724147997237,1.86723328,60975.0,60974.0,0.08189971]
[1724147998079,1.74969674,60975.0,60974.0,0.14269971]
[1724147998298,1.76369674,60975.0,60974.0,0.14269971]
[1724147999324,1.65189674,60975.0,60974.0,0.14269971]
[1724147999518,1.76369674,60975.0,60974.0,0.14269971]
[1724147999719,1.50129474,60975.0,60974.0,0.14269971]
[1724148000698,1.04032274,60975.0,60974.0,0.14269971]
[1724148001120,1.11396598,60975.0,60974.0,0.14269971]
[1724148001543,1.02632274,60975.0,60974.0,0.14269971]
[1724148001741,1.01232274,60975.0,60974.0,0.14269971]
[1724148001871,1.02632274,60975.0,60974.0,0.14269971]
[1724148002079,1.02852274,60975.0,60974.0,0.14269971]
[1724148002402,0.92701591,60975.0,60974.0,0.14269971]
[1724148002599,0.87792074,60975.0,60974.0,0.14269971]
[1724148002802,1.14032274,60975.0,60974.0,0.14269971]
[1724148004233,1.61579869,60975.0,60974.0,0.14269971]
[1724148004454,2.59236869,60975.0,60974.0,0.00109971]
[1724148004637,2.56727352,60975.0,60974.0,0.00109971]
[1724148004850,2.97994391,60975.0,60974.0,0.00109971]
[1724148005040,2.83367552,60975.0,60974.0,0.00109971]
[1724148005238,2.82967552,60975.0,60974.0,0.00109971]
[1724148005487,2.81767552,60975.0,60974.0,0.00109971]
[1724148005703,2.81467552,60975.0,60974.0,0.00109971]
[1724148005913,2.80167552,60975.0,60974.0,0.00109971]
[1724148006126,1.92267552,60975.0,60974.0,0.00109971]
[1724148006330,1.93667552,60975.0,60974.0,0.00109971]
[1724148006536,1.66027352,60975.0,60974.0,0.00109971]
[1724148006937,1.52429474,60975.0,60974.0,0.00109971]
[1724148007306,1.48729474,60975.0,60974.0,0.00109971]
[1724148007667,1.50129474,60975.0,60974.0,0.00109971]
[1724148008069,1.47329474,60975.0,60974.0,0.0010997]
[1724148008496,1.50129474,60975.0,60974.0,0.0010997]
[1724148008900,1.50129474,60975.0,60974.0,0.1458997]
[1724148009099,1.40272474,60975.0,60974.0,0.1458997]
[1724148009939,1.56670352,60975.0,60974.0,0.1458997]
[1724148010186,1.56670352,60975.0,60974.0,0.0835997]
[1724148012158,1.66527352,60975.0,60974.0,0.0010997]
[1724148012562,1.55347352,60975.0,60974.0,0.0010997]
[1724148012767,1.55347352,60975.0,60974.0,0.1416997]
[1724148012892,1.56670352,60975.0,60974.0,0.1416997]
[1724148013102,1.52541816,60975.0,60974.0,0.1416997]
[1724148013580,1.26301616,60975.0,60974.0,0.1416997]
[1724148014556,1.24901616,60975.0,60974.0,0.1416997]
[1724148014732,1.23501894,60975.0,60974.0,0.1416997]
[1724148014950,1.24901894,60975.0,60974.0,0.1416997]
[1724148015151,1.26301894,60975.0,60974.0,0.1416997]
[1724148016271,1.23847615,60975.0,60974.0,0.1416997]
[1724148018507,0.86824773,60975.0,60974.0,0.1416997]
[1724148018718,1.20427079,60975.0,60974.0,0.1416997]
[1724148020112,1.29462851,60975.0,60974.0,0.1416997]
[1724148020689,1.55703051,60975.0,60974.0,0.1416997]
[1724148020946,1.65518392,60975.0,60974.0,0.0010997]
[1724148021942,1.82925392,60975.0,60974.0,0.0010997]
[1724148022242,1.65560051,60975.0,60974.0,0.0010997]
[1724148030263,1.75370723,60975.0,60974.0,0.0010997]
[1724148030626,1.65560051,60975.0,60974.0,0.0010997]
[1724148031234,1.75370294,60975.0,60974.0,0.0010997]
[1724148031460,1.65560051,60975.0,60974.0,0.0010997]
[1724148031681,1.75370079,60975.0,60974.0,0.0010997]
[1724148033401,1.64190079,60975.0,60974.0,0.0010997]
[1724148033608,1.75370079,60975.0,60974.0,0.0010997]
[1724148034004,1.11695001,60975.0,60974.0,0.0010997]
[1724148034161,1.22875001,60975.0,60974.0,0.00109969]
[1724148034532,1.22875001,60975.0,60974.0,0.07769969]
[1724148037801,1.22874197,60975.0,60974.0,0.07769969]
[1724148038053,1.11694197,60975.0,60974.0,0.07769969]
[1724148038217,0.86824773,60975.0,60974.0,0.07769969]
[1724148038851,0.86824773,60975.0,60974.0,0.14229969]
[1724148039392,0.99086303,60975.0,60974.0,0.14229969]
[1724148040340,0.26284473,60975.0,60974.0,0.14229969]
[1724148040792,0.19282898,60975.0,60974.0,0.14229969]
[1724148042611,0.128826,60975.0,60974.0,0.14229969]
[1724148043709,0.028826,60975.0,60974.0,0.14229969]
[1724148049504,0.028826,60975.0,60974.0,0.14180781]
[1724148049734,0.028826,60975.0,60974.0,0.27301081]
[1724148049907,0.028826,60975.0,60974.0,0.5354168]
[1724148050659,0.014826,60975.0,60974.0,0.5354168]
[1724148050862,0.000826,60975.0,60974.0,0.5354168]
[1724148051014,0.014826,60975.0,60974.0,0.5354168]
[1724148051286,0.028826,60975.0,60974.0,0.5354168]
[1724148051641,0.028826,60975.0,60974.0,0.2730108]
[1724148052048,0.028826,60975.0,60974.0,0.1418078]
[1724148053075,0.128826,60975.0,60974.0,0.1418078]
[1724148055851,0.028826,60975.0,60974.0,0.1418078]
[1724148057427,0.128826,60975.0,60974.0,0.1418078]
[1724148058229,0.94883398,60975.0,60974.0,0.0772078]
[1724148058947,0.42402998,60975.0,60974.0,0.1409078]
[1724148059158,0.128826,60975.0,60974.0,0.1409078]
[1724148060229,0.68643198,60975.0,60974.0,0.1409078]
[1724148062598,0.68643198,60975.0,60974.0,0.0772078]
[1724148064936,0.94883398,60975.0,60974.0,0.0006078]
[1724148066005,1.06063398,60975.0,60974.0,0.0006078]
[1724148067353,1.06063398,60975.0,60974.0,0.0834078]
[1724148067980,0.79823198,60975.0,60974.0,0.0834078]
[1724148068658,0.128826,60975.0,60974.0,0.1496078]
[1724148069079,0.028826,60975.0,60974.0,0.1496078]
[1724148078415,0.68643198,60975.0,60974.0,0.0834078]
[1724148079262,0.75640619,60975.0,60974.0,0.0834078]
[1724148079409,0.68643198,60975.0,60974.0,0.0834078]
[1724148079859,0.75640491,60975.0,60974.0,0.0834078]
[1724148080232,0.75640491,60975.0,60974.0,0.08340779]
[1724148080433,0.68643198,60975.0,60974.0,0.08340779]
[1724148080663,0.75641227,60975.0,60974.0,0.08340779]
[1724148080865,0.68643198,60975.0,60974.0,0.08340779]
[1724148083796,0.42402998,60975.0,60974.0,0.08340779]
[1724148086444,0.128826,60975.0,60974.0,0.08340779]
[1724148086650,0.29282898,60975.0,60974.0,0.08340779]
[1724148087144,0.53582998,60975.0,60974.0,0.08340779]
[1724148087344,0.79823198,60975.0,60974.0,0.08340779]
[1724148087554,0.79823198,60975.0,60974.0,0.00060779]
[1724148088517,1.06063398,60975.0,60974.0,0.00060779]
[1724148089162,1.13061871,60975.0,60974.0,0.00060779]
[1724148089614,1.55699949,60975.0,60974.0,0.00060779]
[1724148089741,1.65520586,60975.0,60974.0,0.00060779]
[1724148089947,1.55699949,60975.0,60974.0,0.00060779]
[1724148090158,1.67975746,60975.0,60974.0,0.00060779]
[1724148090557,1.55699949,60975.0,60974.0,0.00060779]
[1724148091569,1.70499949,60975.0,60974.0,0.00060779]
[1724148091774,1.83728452,60975.0,60974.0,0.00060779]
[1724148091953,1.71455018,60975.0,60974.0,0.00060779]
[1724148092334,1.83726218,60975.0,60974.0,0.00060779]
[1724148092651,1.82326218,60975.0,60974.0,0.00060779]
[1724148093067,1.83726218,60975.0,60974.0,0.00060779]
[1724148093275,1.82326218,60975.0,60974.0,0.00060779]
[1724148093481,1.80926218,60975.0,60974.0,0.00060779]
[1724148093693,1.70055018,60975.0,60974.0,0.00060779]
[1724148093900,1.71455018,60975.0,60974.0,0.00060779]
[1724148094218,1.70055018,60975.0,60974.0,0.00060779]
[1724148094620,1.5365714,60975.0,60974.0,0.00060779]
[1724148095024,1.5505714,60975.0,60974.0,0.00060779]
[1724148095426,1.64870406,60975.0,60974.0,0.00060779]
[1724148095839,1.64870412,60975.0,60974.0,0.00060779]
[1724148096042,1.47617568,60975.0,60974.0,0.00060779]
[1724148096265,1.56655018,60975.0,60974.0,0.00060779]
[1724148096520,1.4025714,60975.0,60974.0,0.07780779]
[1724148097257,1.45163643,60975.0,60974.0,0.07780779]
[1724148098092,1.4025714,60975.0,60974.0,0.07780779]
[1724148100644,1.1401694,60975.0,60974.0,0.07780779]
[1724148101685,1.14116962,60975.0,60974.0,0.07780779]
[1724148103039,1.14116962,60975.0,60974.0,0.14310779]
[1724148103040,0.1938292,60975.0,60974.0,0.14310779]
[1724148103967,0.02982622,60975.0,60974.0,0.14310779]
[1724148105691,0.01582622,60975.0,60974.0,0.14310779]
[1724148106686,0.02982622,60975.0,60974.0,0.14310779]
[1724148107494,0.16102722,60975.0,60974.0,0.14310779]
[1724148107701,0.26102722,60975.0,60974.0,0.14310779]
[1724148108824,0.4250302,60975.0,60974.0,0.07780779]
[1724148109042,1.0978342,60975.0,60974.0,0.00060779]
[1724148109265,1.16785613,60975.0,60974.0,0.00060779]
[1724148109714,1.0978342,60975.0,60974.0,0.00060779]
[1724148109914,1.16786428,60975.0,60974.0,0.00060779]
[1724148110733,1.16786428,60975.0,60974.0,0.00035079]
[1724148110734,1.42916628,60975.0,60974.0,0.00035079]
[1724148110931,1.50280032,60975.0,60974.0,0.00035079]
[1724148111132,1.42916628,60975.0,60974.0,0.00035079]
[1724148111820,1.42916628,60975.0,60974.0,9.379e-05]
[1724148112025,1.59314506,60975.0,60974.0,9.379e-05]
[1724148112437,1.59314506,60975.0,60974.0,0.00016028]
[1724148114537,1.66675375,60975.0,60974.0,0.00016028]
[1724148115326,1.59314506,60975.0,60974.0,0.00016028]
[1724148115531,1.50277158,60975.0,60974.0,0.00016028]
[1724148115737,1.50277158,60975.0,60974.0,0.07736028]
[1724148115738,1.13166428,60975.0,60974.0,0.07736028]
[1724148116538,1.11766428,60975.0,60974.0,0.07826888]
[1724148116861,1.10366428,60975.0,60974.0,0.07826888]
[1724148117060,1.10366428,60975.0,60974.0,0.00106888]
[1724148117268,1.11766428,60975.0,60974.0,0.00106888]
[1724148117479,1.39148666,60975.0,60974.0,0.00106888]
[1724148118294,1.40548666,60975.0,60974.0,0.00106888]
[1724148118731,1.66788866,60975.0,60974.0,0.00106888]
[1724148119587,1.61881535,60975.0,60974.0,0.00106888]
[1724148120598,1.50701535,60975.0,60974.0,0.00106888]
[1724148121973,1.50701535,60975.0,60974.0,0.00081188]
[1724148124171,1.60519407,60975.0,60974.0,0.00081188]
[1724148124511,1.445045,60975.0,60974.0,0.00081188]
[1724148127137,1.44510768,60975.0,60974.0,0.00081188]
[1724148131730,1.54369768,60975.0,60974.0,0.00081188]
[1724148131932,1.80609968,60975.0,60974.0,0.00081188]
[1724148132365,2.08539968,60975.0,60974.0,0.00081188]
[1724148132539,1.98715828,60975.0,60974.0,0.00081188]
[1724148132755,2.15113706,60975.0,60974.0,0.00081188]
[1724148133158,2.18480867,60975.0,60974.0,0.00081188]
[1724148133888,1.90550867,60975.0,60974.0,0.00081188]
[1724148134847,1.38053789,60975.0,60974.0,0.00081188]
[1724148135049,1.38053789,60975.0,60974.0,0.14601188]
[1724148135768,1.38055235,60975.0,60974.0,0.14601188]
[1724148136996,1.28226628,60975.0,60974.0,0.14601188]
[1724148139198,1.01986428,60975.0,60974.0,0.14601188]
[1724148139400,1.09357454,60975.0,60974.0,0.14601188]
[1724148139859,1.01986428,60975.0,60974.0,0.14601188]
[1724148140723,1.13156428,60975.0,60974.0,0.14601188]
[1724148142239,1.13156428,60975.0,60974.0,0.14575517]
[1724148143371,0.0998563,60975.0,60974.0,0.14575517]
[1724148143606,0.02982622,60975.0,60974.0,0.14575517]
[1724148149501,0.02949821,60975.0,60974.0,0.14575517]
[1724148149758,0.02949821,60975.0,60974.0,0.27695817]
[1724148150141,0.02949821,60975.0,60974.0,0.14575517]
[1724148150469,0.02949821,60975.0,60974.0,0.27695817]
[1724148150667,0.01549821,60975.0,60974.0,0.27662352]
[1724148151284,0.02949821,60975.0,60974.0,0.27662352]
[1724148151494,0.01549821,60975.0,60974.0,0.27662352]
[1724148151685,0.02949821,60975.0,60974.0,0.27662352]
[1724148151973,0.02949821,60975.0,60974.0,0.27585417]
[1724148152146,0.01549821,60975.0,60974.0,0.27585417]
[1724148152357,0.02549821,60975.0,60974.0,0.27585417]
[1724148153378,0.02549821,60975.0,60974.0,0.14465117]
[1724148154839,0.02549821,60975.0,60974.0,0.27585417]
[1724148155241,0.02549821,60975.0,60974.0,0.53826017]
[1724148158918,0.02549821,60975.0,60974.0,0.27585417]
[1724148160753,0.02549821,60975.0,60974.0,0.53826017]
[1724148162053,0.02549821,60975.0,60974.0,0.53800417]
[1724148162691,0.02549821,60975.0,60974.0,0.53891277]
[1724148166943,0.02549821,60975.0,60974.0,0.27650677]
[1724148167502,0.02549821,60975.0,60974.0,0.14530377]
[1724148167708,0.58310419,60975.0,60974.0,0.0009086]
[1724148167908,0.95592452,60975.0,60974.0,0.0009086]
[1724148168109,0.84550619,60975.0,60974.0,0.0009086]
[1724148168494,1.02160619,60975.0,60974.0,0.0009086]
[1724148168696,1.01160619,60975.0,60974.0,0.0009086]
[1724148168902,1.02560619,60975.0,60974.0,0.0009086]
[1724148169299,1.05840619,60975.0,60974.0,0.0009086]
[1724148169495,1.07240619,60975.0,60974.0,0.0009086]
[1724148170121,1.08640619,60975.0,60974.0,0.0009086]
[1724148170363,1.01030619,60975.0,60974.0,0.0009086]
[1724148170726,0.99630619,60975.0,60974.0,0.0005479]
[1724148170926,1.01030619,60975.0,60974.0,0.0005479]
[1724148171339,0.94950619,60975.0,60974.0,0.0005479]
[1724148172102,0.94950619,60975.0,60974.0,8.427e-05]
[1724148173285,0.42470219,60975.0,60974.0,8.427e-05]
[1724148173512,0.42470219,60975.0,60974.0,0.08218427]
[1724148174445,0.42470219,60975.0,60974.0,8.427e-05]
[1724148177175,0.42470219,60975.0,60971.0,0.0778]
[1724148177176,0.131204,60974.0,60971.0,0.07558224]
[1724148177448,0.1,60973.0,60971.0,0.07558224]
[1724148178271,0.16400298,60972.0,60965.0,0.061]
[1724148178473,0.131215,60969.0,60965.0,0.061]
[1724148178625,0.29521798,60969.0,60965.0,0.061]
[1724148179860,0.31921798,60969.0,60965.0,0.061]
[1724148180106,0.155215,60969.0,60966.0,0.0827]
[1724148180275,0.024,60969.0,60968.0,0.0785]
[1724148181285,0.30921698,60969.0,60968.0,0.0785]
[1724148181486,0.31921698,60969.0,60968.0,0.0785]
[1724148181663,0.30521698,60969.0,60968.0,0.0785]
[1724148182064,0.31921698,60969.0,60968.0,0.07775118]
[1724148182488,0.30521698,60969.0,60968.0,0.07775118]
[1724148182894,0.31921698,60969.0,60968.0,0.07775118]
[1724148184105,0.131219,60967.0,60963.0,0.0626]
[1724148184306,0.131224,60964.0,60962.0,0.0009086]
[1724148184510,0.131226,60964.0,60962.0,0.0009086]
[1724148184767,0.131227,60963.0,60962.0,0.0009086]
[1724148184918,0.505381,60963.0,60962.0,0.0009086]
[1724148185124,0.93183798,60963.0,60962.0,0.0009086]
[1724148186135,0.94583798,60963.0,60962.0,0.0009086]
[1724148186589,0.83413798,60963.0,60962.0,0.0009086]
[1724148186795,0.670135,60963.0,60962.0,0.0009086]
[1724148187001,0.145227,60963.0,60962.0,0.1386086]
[1724148187648,0.131227,60963.0,60962.0,0.1386086]
[1724148187841,0.145227,60963.0,60962.0,0.1386086]
[1724148188057,0.393672,60965.0,60962.0,0.1386086]
[1724148188202,0.131225,60964.0,60962.0,0.1386086]
[1724148188405,0.026,60963.0,60962.0,0.1386086]
[1724148189427,0.012,60963.0,60962.0,0.1386086]
[1724148189742,0.026,60963.0,60962.0,0.1386086]
[1724148191168,0.026,60963.0,60962.0,0.0781086]
[1724148191532,0.91213798,60963.0,60962.0,0.0009086]
[1724148191878,0.84613798,60963.0,60962.0,0.0009086]
[1724148192082,0.84613798,60963.0,60962.0,0.00020502]
[1724148192478,0.83213798,60963.0,60962.0,0.00020502]
[1724148192687,0.82013798,60963.0,60962.0,0.00020502]
[1724148192880,0.83413798,60963.0,60962.0,0.00020502]
[1724148194300,0.84813798,60963.0,60962.0,0.00020502]
[1724148194893,1.49084989,60963.0,60962.0,0.00020502]
[1724148195864,1.47684989,60963.0,60962.0,0.00020502]
[1724148196495,1.46284989,60963.0,60962.0,0.00020502]
[1724148196712,1.47684989,60963.0,60962.0,0.00020502]
[1724148197322,1.46284989,60963.0,60962.0,0.00020502]
[1724148197927,1.47684989,60963.0,60962.0,0.00020502]
[1724148198782,1.49084989,60963.0,60962.0,0.00020502]
[1724148201669,1.56091592,60963.0,60962.0,0.00020502]
[1724148206090,1.82336992,60963.0,60962.0,0.00020502]
[1724148206268,1.84636992,60963.0,60962.0,0.00020502]
[1724148207465,1.83236992,60963.0,60962.0,0.00020502]
[1724148208137,1.84636992,60963.0,60962.0,0.00020502]
[1724148208287,1.82336992,60963.0,60962.0,0.00020502]
[1724148209035,1.68531201,60963.0,60962.0,0.00020502]
[1724148211082,1.60721201,60963.0,60962.0,0.00020502]
[1724148211675,1.60803801,60963.0,60962.0,0.00020502]
[1724148212522,1.28148401,60963.0,60962.0,0.00020502]
[1724148212726,0.96066398,60963.0,60962.0,0.00020502]
[1724148214736,1.06066398,60963.0,60962.0,0.00020502]
[1724148214932,0.42405598,60963.0,60962.0,0.00020502]
[1724148215180,0.42405598,60963.0,60962.0,0.08300502]
[1724148215181,0.32405598,60963.0,60962.0,0.08300502]
[1724148215371,0.32405598,60963.0,60962.0,0.14530502]
[1724148215793,0.028826,60963.0,60962.0,0.14530502]
[1724148215997,0.000826,60963.0,60962.0,0.14530502]
[1724148216371,0.014826,60963.0,60962.0,0.14530502]
[1724148216595,0.000826,60963.0,60962.0,0.14530502]
[1724148217241,0.014826,60963.0,60962.0,0.14530502]
[1724148218063,0.028826,60963.0,60962.0,0.14530502]
[1724148218263,0.014826,60963.0,60962.0,0.14530502]
[1724148218670,0.028826,60963.0,60962.0,0.14530502]
[1724148226238,0.028826,60963.0,60962.0,0.00020502]
[1724148226239,0.51967099,60963.0,60962.0,0.00020502]
[1724148226445,0.94896398,60963.0,60962.0,0.00020502]
[1724148227933,1.35841798,60963.0,60962.0,0.00020502]
[1724148228113,1.42852606,60963.0,60962.0,0.00020502]
[1724148228351,1.47756251,60963.0,60962.0,0.00020502]
[1724148228553,1.45152606,60963.0,60962.0,0.00020502]
[1724148228754,1.61550484,60963.0,60962.0,0.00020502]
[1724148228954,1.60150484,60963.0,60962.0,0.00020502]
[1724148229287,1.58750484,60963.0,60962.0,0.00020502]
[1724148229518,1.60150484,60963.0,60962.0,0.00020502]
[1724148230455,1.69957774,60963.0,60962.0,0.00020502]
[1724148230767,1.69961632,60963.0,60962.0,0.00020502]
[1724148230967,1.71361632,60963.0,60962.0,0.00020502]
[1724148231299,1.69961632,60963.0,60962.0,0.00020502]
[1724148231498,1.72414419,60963.0,60962.0,0.00020502]
[1724148231701,1.73814419,60963.0,60962.0,0.00020502]
[1724148231903,2.00059819,60963.0,60962.0,0.00020502]
[1724148233482,2.09918819,60963.0,60962.0,0.00020502]
[1724148234049,2.08518819,60963.0,60962.0,0.00020502]
[1724148234460,2.09918819,60963.0,60962.0,0.00020502]
[1724148234667,2.08518819,60963.0,60962.0,0.00020502]
[1724148235087,2.09918819,60963.0,60962.0,0.00020502]
[1724148235487,2.09918682,60963.0,60962.0,0.00020502]
[1724148235703,1.81257006,60963.0,60962.0,0.00020502]
[1724148235888,1.73047006,60963.0,60962.0,0.00020502]
[1724148237242,1.60888006,60963.0,60962.0,0.00020502]
[1724148240551,1.78297006,60963.0,60962.0,0.00020502]
[1724148240775,2.55597006,60963.0,60962.0,0.00020502]
[1724148240976,2.71994884,60963.0,60962.0,0.00020502]
[1724148241558,1.96994884,60963.0,60962.0,0.00020502]
[1724148244273,1.70738006,60963.0,60962.0,0.00020502]
[1724148244451,1.54398006,60963.0,60962.0,0.00020502]
[1724148246389,1.65568006,60963.0,60962.0,0.00020502]
[1724148247577,1.28152606,60963.0,60962.0,0.00020502]
[1724148247918,1.51599754,60963.0,60962.0,0.00020502]
[1724148248124,1.51599345,60963.0,60962.0,0.00020502]
[1724148248388,1.39322606,60963.0,60962.0,0.00020502]
[1724148248525,1.49144147,60963.0,60962.0,0.00020502]
[1724148248906,1.34386026,60963.0,60962.0,0.14580502]
[1724148249016,1.13077206,60963.0,60962.0,0.14580502]
[1724148249469,0.86831806,60963.0,60962.0,0.14540452]
[1724148249907,0.85431806,60963.0,60962.0,0.14540452]
[1724148250337,1.11677206,60963.0,60962.0,0.14540452]
[1724148250753,1.06066398,60963.0,60962.0,0.14540452]
[1724148250968,1.04666398,60963.0,60962.0,0.14540452]
[1724148251253,1.06066398,60963.0,60962.0,0.14540452]
[1724148252707,0.68650998,60963.0,60962.0,0.14540452]
[1724148252912,0.29282898,60963.0,60962.0,0.14540452]
[1724148253113,0.42405598,60963.0,60962.0,0.14540452]
[1724148254159,0.53575598,60963.0,60962.0,0.14540452]
[1724148254364,0.79820998,60963.0,60962.0,0.14540452]
[1724148254773,1.06066398,60963.0,60962.0,0.14540452]
[1724148258673,1.06066398,60963.0,60962.0,0.14631312]
[1724148264943,1.07057828,60963.0,60962.0,0.14631312]
[1724148266223,1.06066398,60963.0,60962.0,0.14631312]
[1724148267354,0.29282898,60963.0,60962.0,0.14631312]
[1724148267507,0.128826,60963.0,60962.0,0.14631312]
[1724148267707,0.028826,60963.0,60962.0,0.14631312]
[1724148268679,0.028826,60963.0,60962.0,0.27754212]
[1724148268880,0.028826,60963.0,60962.0,0.54000012]
[1724148269084,0.028826,60963.0,60962.0,0.27754212]
[1724148269287,0.028826,60963.0,60962.0,0.14631312]
[1724148269635,0.014826,60963.0,60962.0,0.14631312]
[1724148269844,0.126526,60963.0,60962.0,0.14631312]
[1724148270061,0.69720998,60963.0,60962.0,0.14631312]
[1724148270883,0.95966398,60963.0,60962.0,0.0828086]
[1724148271110,1.18834488,60963.0,60962.0,0.0009086]
[1724148271318,1.03266398,60963.0,60962.0,0.0009086]
[1724148271505,1.04733449,60963.0,60962.0,0.0009086]
[1724148271700,1.06133449,60963.0,60962.0,0.0009086]
[1724148272151,1.04733449,60963.0,60962.0,0.0009086]
[1724148272355,1.05633449,60963.0,60962.0,0.0009086]
[1724148272904,1.07033449,60963.0,60962.0,0.0009086]
[1724148273124,1.05633449,60963.0,60962.0,0.0009086]
[1724148273356,1.30478849,60963.0,60962.0,0.0009086]
[1724148273560,1.44173734,60963.0,60962.0,0.0009086]
[1724148274575,1.45573734,60963.0,60962.0,0.0009086]
[1724148275197,1.44173734,60963.0,60962.0,0.0009086]
[1724148275409,1.45573734,60963.0,60962.0,0.0009086]
[1724148275613,1.46973734,60963.0,60962.0,0.0009086]
[1724148275813,1.53991456,60963.0,60962.0,0.0009086]
[1724148277043,1.40296571,60963.0,60962.0,0.0009086]
[1724148278420,1.40296571,60963.0,60962.0,0.00042677]
[1724148288597,0.656177,60959.0,60958.0,0.00085009]
[1724148288788,1.03187998,60959.0,60958.0,0.00085009]
[1724148289755,1.04587998,60959.0,60958.0,0.00085009]
[1724148289964,1.05987998,60959.0,60958.0,0.00085009]
[1724148292848,1.32235098,60959.0,60958.0,0.00085009]